[Event "IND-ch Women 2019"]
[Site "Karaikkudi"]
[Date "2019.07.20"]
[Round "2.3"]
[White "Divya Deshmukh"]
[Black "Bakshi, Rutuja"]
[Result "1-0"]
[ECO "D17"]
[WhiteElo "2373"]
[BlackElo "1958"]
[Annotator "ChessBase"]
[PlyCount "95"]
[EventDate "2019.07.19"]
[EventType "swiss"]
[EventCountry "IND"]
[SourceTitle "playchess.com"]
[Source "ChessBase"]
[SourceQuality "1"]
[TimeControl "40/5400+30:1800+30"]

1. d4 {[%emt 1:30:30]} d5 {[%emt 0:00:02]} 2. c4 {[%emt 0:00:00]} c6 {[%emt 0:00:12]} 3. Nc3 {[%emt 0:00:00]} Nf6 {[%emt 0:00:33]} 4. Nf3 {[%emt 0:00:00]} dxc4 {[%emt 0:00:35]} 5. a4 {[%emt 0:00:00]} Bf5 {[%emt 0:00:45]} 6. Ne5 {[%emt 0:00:00]} e6 {[%emt 0:00:35]} 7. f3 {[%emt 0:00:00]} Bb4 {[%emt 0:00:55]} 8. g3 {[%emt 0:00:00]} b5 {[%emt 0:16:30]} 9. axb5 {[%emt 0:00:00]} cxb5 {[%emt 0:02:17]} 10. Bg2 {[%emt 0:00:00]} Qb6 {[%emt 0:18:56]} 11. O-O {[%emt 0:00:00]} Nbd7 {[%emt 0:05:30]} 12. Nxd7 {[%emt 0:00:00]} Nxd7 {[%emt 0:02:25]} 13. f4 {[%emt 0:00:00]} O-O {[%emt 0:12:51]} 14. e4 {[%emt 0:00:00]} Bg6 {[%emt 0:01:46]} 15. f5 {[%emt 0:00:00]} Bh5 {[%emt 0:00:59]} 16. Qxh5 {[%emt 0:00:00]} Qxd4+ {[%emt 0:00:02]} 17. Kh1 {[%emt 0:00:00]} Bxc3 {[%emt 0:01:17]} 18. bxc3 {[%emt 0:00:00]} Qxc3 {[%emt 0:00:12]} 19. Bg5 {[%emt 0:00:00]} f6 {[%emt 0:16:59]} 20. fxe6 {[%emt 0:00:00]} Ne5 {[%emt 0:01:29]} 21. e7 {[%emt 0:00:00]} Rf7 {[%emt 0:05:07]} 22. Rxa7 {[%emt 0:00:00]} Re8 {[%emt 0:00:17]} 23. Bf4 {[%emt 0:00:00]} Rfxe7 {[%emt 0:01:24]} 24. Rxe7 {[%emt 0:00:00]} Rxe7 {[%emt 0:00:01]} 25. Rd1 {[%emt 0:00:00]} Qa5 {[%emt 0:02:03]} 26. Bd2 {[%emt 0:00:00]} Qa8 {[%emt 0:02:39]} 27. Rf1 {[%emt 0:00:00]} Qa3 {[%emt 0:02:17]} 28. Qf5 {[%emt 0:00:00]} Re8 {[%emt 0:01:09]} 29. Bf4 {[%emt 0:00:00]} Qa8 {[%emt 0:02:08]} 30. Bxe5 {[%emt 0:00:00]} Rxe5 {[%emt 0:00:10]} 31. Qd7 {[%emt 0:00:00]} h6 {[%emt 0:02:10]} 32. h4 {[%emt 0:00:00]} c3 {[%emt 0:00:58]} 33. Qc7 {[%emt 0:00:00]} b4 {[%emt 0:00:38]} 34. Qc4+ {[%emt 0:00:00]} Kh7 {[%emt 0:00:24]} 35. Qxb4 {[%emt 0:00:00]} Qc8 {[%emt 0:00:22]} 36. Rc1 {[%emt 0:00:00]} Rc5 {[%emt 0:00:17]} 37. Kh2 {[%emt 0:00:00]} Qc7 {[%emt 0:00:19]} 38. Qd4 {[%emt 0:00:00]} Rc4 {[%emt 0:00:56]} 39. Qd3 {[%emt 0:00:00]} Kh8 {[%emt 0:00:22]} 40. Bh3 {[%emt 0:00:00]} c2 {[%emt 0:00:00]} 41. Qe2 {[%emt 0:00:00]} Rc3 {[%emt 0:02:57]} 42. Qf2 {[%emt 0:00:00]} Qc4 {[%emt 0:02:21]} 43. Bf5 {[%emt 0:00:00]} Qc7 {[%emt 0:06:40]} 44. Bg6 {[%emt 0:00:00]} Kg8 {[%emt 0:01:47]} 45. Qf4 {[%emt 0:00:00]} Qd8 {[%emt 0:00:59]} 46. h5 {[%emt 0:00:44]} Qc8 {[%emt 0:01:36]} 47. Qf5 {[%emt 0:02:41]} Qc4 {[%emt 0:00:16]} 48. Qd5+ {[%emt 0:00:09]} 1-0

[Event "IND-ch Women 2019"]
[Site "Karaikkudi"]
[Date "2019.07.20"]
[Round "2.4"]
[White "Saranya, J."]
[Black "Vijayalakshmi, Subbaraman"]
[Result "1/2-1/2"]
[ECO "B07"]
[WhiteElo "2067"]
[BlackElo "2357"]
[Annotator "NA"]
[PlyCount "215"]
[EventDate "2019.07.19"]
[EventType "swiss"]
[EventCountry "IND"]
[SourceTitle "playchess.com"]
[Source "ChessBase"]
[SourceQuality "1"]
[TimeControl "40/5400+30:1800+30"]

1. e4 {[%emt 0:02:02]} d6 {[%emt 0:00:00]} 2. d4 {[%emt 0:00:17]} Nf6 {[%emt 0:00:00]} 3. Nc3 {[%emt 0:00:15]} e5 {[%emt 0:00:08]} 4. dxe5 {[%emt 0:03:53]} dxe5 {[%emt 0:00:06]} 5. Qxd8+ {[%emt 0:03:54]} (5. Qd3 {[%emt 1:26:03]}) 5... Kxd8 {[%emt 0:00:04]} 6. Bc4 {[%emt 0:06:40]} Be6 {[%emt 0:02:43]} 7. Bxe6 {[%emt 0:07:05]} fxe6 {[%emt 0:00:06]} 8. Bg5 {[%emt 0:01:45]} Bb4 {[%emt 0:02:42] B07: Pirc Defence: Miscellaneous Systems} (8... Bd6 9. O-O-O Ke7 10. Nge2 h6 11. Bh4 g5 12. Bg3 Nh5 13. f3 Nc6 14. Nb5 a6 15. Nxd6 cxd6 16. Bf2 Nf4 17. Nxf4 exf4 {½-½ (64) Vernay,C (2506)-Bellini,F (2470) Switzerland 2017}) 9. O-O-O+ {[%emt 0:05:33]} Nbd7 {[%emt 0:00:37]} 10. Nge2 {[%emt 0:13:51]} Ke7 {[%emt 0:02:35]} 11. f3 {[%emt 0:03:59]} a6 {[%emt 0:02:30]} 12. f4 $146 {[%emt 0:06:40]} ({Predecessor:} 12. a3 Ba5 13. Nb1 Bb6 14. Nec3 h6 15. Bd2 Rac8 16. Rhe1 {½-½ (38) Meinke,D (1919)-Boldt,H (1883) Magdeburg 2015}) 12... h6 {[%emt 0:02:16]} 13. Bxf6+ {[%emt 0:03:00]} gxf6 {[%emt 0:01:43]} 14. f5 {[%emt 0:01:07]} Rhg8 {[%emt 0:03:11]} 15. fxe6 {[%emt 0:04:14]} Kxe6 {[%emt 0:00:39]} 16. Nd5 {[%emt 0:04:38]} Bd6 {[%emt 0:00:49]} 17. Ng3 {[%emt 0:01:40]} Rad8 {[%emt 0:02:27]} 18. Rd2 {[%emt 0:05:48]} c6 {[%emt 0:07:53]} 19. Ne3 {[%emt 0:00:58]} Bc5 {[%emt 0:00:26]} 20. Nef5 {[%emt 0:01:01]} Nb6 {[%emt 0:00:20]} 21. Rxd8 {[%emt 0:02:40]} Rxd8 {[%emt 0:00:07]} 22. Rd1 {[%emt 0:00:41]} Rxd1+ {[%emt 0:00:43]} 23. Kxd1 {[%emt 0:00:04]} Bf8 {[%emt 0:00:10]} 24. b3 {[%emt 0:05:40]} a5 {[%emt 0:01:00]} 25. Ke2 {[%emt 0:00:57]} Nd7 {[%emt 0:00:39]} 26. h4 {[%emt 0:01:32]} Nc5 {[%emt 0:00:36]} 27. Ne3 {[%emt 0:04:52]} b5 {[%emt 0:01:06]} 28. c3 {[%emt 0:02:45]} Kf7 {[%emt 0:00:28]} 29. Nd1 {[%emt 0:02:04]} Ne6 {[%emt 0:01:16]} 30. Kf3 {[%emt 0:00:58]} Nf4 {[%emt 0:01:48]} 31. Ne2 {[%emt 0:00:51]} Nd3 {[%emt 0:00:15]} 32. Kg4 {[%emt 0:03:20]} Kg6 {[%emt 0:02:37]} 33. h5+ {[%emt 0:00:43]} Kf7 {[%emt 0:00:19]} 34. Ne3 {[%emt 0:00:18]} Nc5 {[%emt 0:01:16]} 35. Kf3 {[%emt 0:00:39]} Ke6 {[%emt 0:06:55]} 36. Nf5 {[%emt 0:00:20]} Kd7 {[%emt 0:00:38]} 37. Nc1 {[%emt 0:00:41]} Ne6 {[%emt 0:01:02]} 38. Nd3 {[%emt 0:00:36]} Kc7 {[%emt 0:01:55]} 39. g3 {[%emt 0:00:56]} Ng5+ {[%emt 0:03:38]} 40. Ke3 {[%emt 0:00:00]} Kd7 {[%emt 0:00:00]} 41. Ne1 {[%emt 0:00:56]} Ke6 {[%emt 0:06:51]} 42. Kd3 {[%emt 0:05:06]} Nh3 {[%emt 0:01:14]} 43. Ke2 {[%emt 0:02:27]} Ng5 {[%emt 0:00:19]} 44. Kd3 {[%emt 0:00:49]} Kf7 {[%emt 0:01:44]} 45. Ng2 {[%emt 0:01:04]} Ne6 {[%emt 0:02:34]} 46. Ngh4 {[%emt 0:02:24]} Ke8 {[%emt 0:03:20]} 47. Nf3 {[%emt 0:03:53]} Ba3 {[%emt 0:03:37]} 48. Kc2 {[%emt 0:05:51]} Bf8 {[%emt 0:04:17]} 49. Kd3 {[%emt 0:01:25]} Nd8 {[%emt 0:00:17]} 50. Nh2 {[%emt 0:00:58]} Ne6 {[%emt 0:08:50]} 51. Ng4 {[%emt 0:01:49]} Nc5+ {[%emt 0:01:37]} 52. Ke3 {[%emt 0:04:10]} Nd7 {[%emt 0:00:21]} 53. Nfxh6 {[%emt 0:03:01]} Ba3 {[%emt 0:00:18]} 54. Kd2 {[%emt 0:01:23]} Kf8 {[%emt 0:00:37]} 55. Nf5 {[%emt 0:00:49]} Kg8 {[%emt 0:01:12]} 56. Nf2 {[%emt 0:01:25]} Kh7 {[%emt 0:00:45]} 57. Nd3 {[%emt 0:01:03]} Bf8 {[%emt 0:00:09]} 58. Kc2 {[%emt 0:00:48]} Kg8 {[%emt 0:01:17]} 59. b4 {[%emt 0:00:33]} a4 {[%emt 0:02:24]} 60. a3 {[%emt 0:00:33]} Nb6 {[%emt 0:00:36]} 61. Nb2 {[%emt 0:00:22]} c5 {[%emt 0:00:45]} 62. g4 {[%emt 0:00:36]} Kh7 {[%emt 0:00:44]} 63. Kb1 {[%emt 0:00:26]} Kg8 {[%emt 0:03:33]} 64. Ka2 {[%emt 0:00:25]} Kh7 {[%emt 0:01:25]} 65. Nd3 {[%emt 0:00:38]} Nd7 {[%emt 0:00:22]} 66. Nb2 {[%emt 0:00:36]} Nb6 {[%emt 0:00:18]} 67. Nd3 {[%emt 0:00:02]} Nd7 {[%emt 0:00:06]} 68. Kb2 {[%emt 0:00:40]} Kg8 {[%emt 0:00:41]} 69. Ne3 {[%emt 0:00:34]} Kh7 {[%emt 0:02:57]} 70. Nd5 {[%emt 0:00:36]} c4 {[%emt 0:00:44]} 71. Ne1 {[%emt 0:00:24]} Bd6 {[%emt 0:01:08]} 72. Nf3 {[%emt 0:00:08]} Bb8 {[%emt 0:00:48]} 73. Kc2 {[%emt 0:00:19]} Kg7 {[%emt 0:00:11]} 74. Kd2 $18 {[%emt 0:00:51]} Nf8 {[%emt 0:00:18]} 75. Nh4 {[%emt 0:00:54]} Kh6 {[%emt 0:02:17]} 76. Ke3 {[%emt 0:00:24]} Ne6 {[%emt 0:01:19]} 77. Nf5+ {[%emt 0:00:28]} Kg5 {[%emt 0:00:54]} 78. h6 {[%emt 0:00:36]} Kg6 {[%emt 0:01:13]} 79. Nxf6 {[%emt 0:00:34]} Ba7+ {[%emt 0:00:22]} 80. Kd2 {[%emt 0:00:22]} Ng5 {[%emt 0:00:28]} 81. h7 {[%emt 0:00:26]} Nf7 {[%emt 0:00:11]} 82. Ne8 {[%emt 0:00:43]} Kxh7 {[%emt 0:00:18]} 83. Nfd6 {[%emt 0:00:30]} Ng5 {[%emt 0:00:12]} 84. Nc7 {[%emt 0:00:23]} Kg6 {[%emt 0:00:54]} 85. Ncxb5 {[%emt 0:00:11]} Bg1 {[%emt 0:00:12]} 86. Nxc4 {[%emt 0:00:50]} Nxe4+ {[%emt 0:00:12]} 87. Ke2 {[%emt 0:00:14]} Kf6 {[%emt 0:00:52]} 88. Nd2 {[%emt 0:00:22]} Nxd2 {[%emt 0:01:17]} 89. Kxd2 {[%emt 0:00:04]} Kg5 {[%emt 0:00:04]} 90. c4 {[%emt 0:00:46]} Kxg4 {[%emt 0:00:13]} 91. c5 {[%emt 0:00:26]} Kf3 {[%emt 0:00:34]} 92. c6 {[%emt 0:00:26]} e4 {[%emt 0:00:25]} 93. Nc3 {[%emt 0:00:54]} Bb6 {[%emt 0:40:31]} 94. Nd5 {[%emt 0:00:48]} e3+ {[%emt 0:00:00]} 95. Nxe3 {[%emt 0:00:24]} Bxe3+ {[%emt 0:00:00]} 96. Kd3 {[%emt 0:00:01]} Bb6 {[%emt 0:00:00]} 97. Kc4 {[%emt 0:00:14]} Ke4 {[%emt 0:00:00]} 98. Kb5 {[%emt 0:00:16]} Bd8 {[%emt 0:00:00]} 99. Kxa4 {[%emt 0:00:43]} Kd5 {[%emt 0:00:00]} 100. Kb5 {[%emt 0:00:04]} Kd6 {[%emt 0:00:00]} 101. a4 {[%emt 0:00:41]} Kc7 {[%emt 0:00:00]} 102. Ka6 {[%emt 0:01:03]} Kxc6 {[%emt 0:00:00]} 103. b5+ {[%emt 0:00:08]} Kc7 {[%emt 0:00:00]} 104. a5 {[%emt 0:01:12]} Kb8 {[%emt 0:00:00]} 105. b6 {[%emt 0:00:02]} Bxb6 {[%emt 0:00:00]} 106. axb6 {[%emt 0:00:04]} Ka8 {[%emt 0:00:00]} 107. b7+ {[%emt 0:00:02]} Kb8 {[%emt 0:00:00]} 108. Kb6 {[%emt 0:00:02]} 1/2-1/2

[Event "IND-ch Women 2019"]
[Site "Karaikkudi"]
[Date "2019.07.20"]
[Round "2.5"]
[White "Srija, Seshadri"]
[Black "Jyothsna L"]
[Result "0-1"]
[ECO "C01"]
[WhiteElo "2306"]
[BlackElo "1939"]
[Annotator "ChessBase"]
[PlyCount "70"]
[EventDate "2019.07.19"]
[EventType "swiss"]
[EventCountry "IND"]
[SourceTitle "playchess.com"]
[Source "ChessBase"]
[SourceQuality "1"]
[TimeControl "40/5400+30:1800+30"]

1. e4 {[%emt 0:00:00]} e6 {[%emt 0:00:43]} 2. d4 {[%emt 0:00:00]} d5 {[%emt 0:00:01]} 3. Bd3 {[%emt 0:00:00]} Nf6 {[%emt 0:00:10]} 4. e5 {[%emt 0:00:12]} Nfd7 {[%emt 0:00:02]} 5. Ne2 {[%emt 0:00:17]} c5 {[%emt 0:00:56]} 6. c3 {[%emt 0:00:13]} Nc6 {[%emt 0:00:03]} 7. a3 {[%emt 0:00:46]} cxd4 {[%emt 0:01:47]} 8. cxd4 {[%emt 0:00:09]} f6 {[%emt 0:02:13]} 9. Nf4 {[%emt 0:08:01]} Nxd4 {[%emt 0:04:40]} 10. Qh5+ {[%emt 0:01:26]} Ke7 {[%emt 0:00:26]} 11. O-O {[%emt 0:21:55]} Nxe5 {[%emt 0:32:46]} 12. Nc3 {[%emt 0:00:31]} Ndc6 {[%emt 0:21:48]} 13. Re1 {[%emt 0:05:52]} Qe8 {[%emt 0:05:53]} 14. Qh4 {[%emt 0:09:24]} Kf7 {[%emt 0:05:32]} 15. Bxh7 {[%emt 0:24:32]} Bc5 {[%emt 0:12:56]} 16. b4 {[%emt 0:07:41]} g5 {[%emt 0:03:20]} 17. Qh6 {[%emt 0:09:49]} Bxf2+ {[%emt 0:00:54]} 18. Kxf2 {[%emt 0:04:02]} gxf4 {[%emt 0:01:56]} 19. Kf1 {[%emt 0:01:23]} Qf8 {[%emt 0:01:06]} 20. Qxf8+ {[%emt 0:00:45]} Kxf8 {[%emt 0:00:03]} 21. Bc2 {[%emt 0:03:32]} f3 {[%emt 0:01:39]} 22. Bf4 {[%emt 0:00:00]} fxg2+ {[%emt 0:00:58]} 23. Kxg2 {[%emt 0:00:00]} Bd7 {[%emt 0:00:32]} 24. Rad1 {[%emt 0:00:00]} Rc8 {[%emt 0:00:13]} 25. Ba4 {[%emt 0:00:00]} Kf7 {[%emt 0:00:40]} 26. Nb5 {[%emt 0:00:11]} Ke7 {[%emt 0:00:10]} 27. Be3 {[%emt 0:02:12]} b6 {[%emt 0:00:34]} 28. Bb3 {[%emt 0:00:20]} Rcg8+ {[%emt 0:00:55]} 29. Kh1 {[%emt 0:00:14]} Rh3 {[%emt 0:00:33]} 30. Bc2 {[%emt 0:00:31]} Nxb4 {[%emt 0:00:46]} 31. axb4 {[%emt 0:00:19]} Bxb5 {[%emt 0:00:02]} 32. Bf4 {[%emt 0:00:31]} Kd6 {[%emt 0:00:49]} 33. Rd2 {[%emt 0:00:40]} Rh4 {[%emt 0:00:25]} 34. Rd4 {[%emt 0:00:28]} Rgg4 {[%emt 0:00:20]} 35. Bxe5+ {[%emt 0:00:41]} fxe5 {[%emt 0:00:02]} 0-1

[Event "IND-ch Women 2019"]
[Site "Karaikkudi"]
[Date "2019.07.20"]
[Round "2.6"]
[White "Sanskriti Goyal"]
[Black "Gomes, Mary Ann"]
[Result "1/2-1/2"]
[ECO "A25"]
[WhiteElo "1948"]
[BlackElo "2303"]
[Annotator "NA"]
[PlyCount "114"]
[EventDate "2019.07.19"]
[EventType "swiss"]
[EventCountry "IND"]
[SourceTitle "playchess.com"]
[Source "ChessBase"]
[SourceQuality "1"]
[TimeControl "40/5400+30:1800+30"]

1. b3 {[%emt 0:00:00]} e5 {[%emt 0:00:00]} 2. Bb2 {[%emt 0:00:00]} Nc6 {[%emt 0:00:00]} 3. c4 {[%emt 0:02:00]} g6 {[%emt 0:00:00]} 4. Nc3 {[%emt 0:05:50]} Bg7 {[%emt 0:00:05]} 5. g3 {[%emt 0:03:35]} d6 {[%emt 0:00:14]} 6. Bg2 {[%emt 0:00:39]} f5 {[%emt 0:01:23]} 7. e3 {[%emt 0:09:37]} Nf6 {[%emt 0:03:34]} 8. Nge2 {[%emt 0:00:41]} O-O {[%emt 0:00:26]} 9. O-O {[%emt 0:00:06]} g5 {[%emt 0:00:41] A25: English Opening vs King's Indian with ...Nc6 but without early d3} (9... e4 10. d3 exd3 11. Qxd3 Be6 12. Rad1 Bf7 13. Qd2 g5 14. Nd4 Nxd4 15. exd4 f4 16. Bxb7 Rb8 17. Bg2 {0-1 (60) Lai,H (2557)-Fier,A (2493) Amsterdam 2017}) 10. f4 {[%emt 0:08:48]} gxf4 {[%emt 0:04:08]} 11. gxf4 {[%emt 0:00:03]} e4 {[%emt 0:00:56]} 12. d3 $146 {[%emt 0:07:23]} ({Predecessor:} 12. d4 Nb4 13. Qd2 Nd3 14. Ba3 c5 15. Na4 Qe7 16. Nb2 Nxb2 17. Bxb2 Be6 18. d5 Bf7 19. Ng3 Bg6 20. Bh3 Nh5 21. Bxg7 {½-½ (21) Cvetkovic,S (2425)-Marinkovic,S (2415) Nis 1995}) 12... Qe8 {[%emt 0:14:09]} (12... Ng4 $14) 13. Ng3 {[%emt 0:13:47]} Ng4 {[%emt 0:06:01]} 14. Qd2 {[%emt 0:05:37]} Nxe3 $1 {[%emt 0:02:31]} 15. Rfe1 {[%emt 0:00:48]} ({Much worse is} 15. Qxe3 Bd4 $17) 15... Nxg2 {[%emt 0:04:53]} 16. Kxg2 {[%emt 0:00:03]} Qg6 {[%emt 0:02:39]} 17. dxe4 {[%emt 0:01:06]} fxe4 {[%emt 0:00:09]} 18. Nd5 $1 {[%emt 0:05:45]} Bxb2 {[%emt 0:07:16]} 19. Qxb2 {[%emt 0:00:03]} Bf5 {[%emt 0:01:27]} 20. Kf2 {[%emt 0:07:48]} ({White should play} 20. Re3 $16) 20... Qh6 {[%emt 0:06:52]} (20... Be6 $1 $11 {remains equal.} 21. Rxe4 Bxd5 22. cxd5 Rae8 23. Rxe8 Qxe8) 21. Rg1 {[%emt 0:03:16]} Bg6 {[%emt 0:07:34]} ({Wrong is} 21... Qxh2+ $2 22. Rg2 $18) 22. Ke1 {[%emt 0:08:03] [#]} Rxf4 {[%emt 0:03:38]} (22... e3 $1 $17 {[%mdl 512]} 23. f5 (23. Nxc7 $2 Rxf4 24. Nd5 Rf2 $19 {[%mdl 64] Double Attack}) (23. Nxe3 Rae8) 23... Ne5) 23. Nxf4 {[%emt 0:01:53]} Qxf4 {[%emt 0:00:05]} 24. Qg7+ {[%emt 0:00:35]} Kxg7 {[%emt 0:00:05]} 25. Nh5+ {[%emt 0:00:03]} Kh6 {[%emt 0:00:12]} 26. Nxf4 {[%emt 0:00:04]} Nd4 $1 {[%emt 0:00:14]} 27. Rg2 {[%emt 0:03:35]} Rf8 {[%emt 0:04:14]} 28. Nxg6 {[%emt 0:00:47]} hxg6 {[%emt 0:00:05]} 29. Kd2 {[%emt 0:01:04]} Rf3 {[%emt 0:03:34]} 30. Rag1 {[%emt 0:03:24]} Kh7 {[%emt 0:01:29]} 31. Rg3 {[%emt 0:03:09]} c5 {[%emt 0:02:49]} 32. Ke1 {[%emt 0:02:47]} Rf4 {[%emt 0:03:45]} 33. R1g2 {[%emt 0:01:31]} g5 {[%emt 0:01:15]} 34. Rxg5 {[%emt 0:00:34]} Nf3+ {[%emt 0:00:05]} 35. Ke2 {[%emt 0:00:01]} Nxg5 {[%emt 0:00:05]} 36. Rxg5 {[%emt 0:00:04]} Rh4 {[%emt 0:00:28]} 37. Ke3 {[%emt 0:02:36]} Rxh2 {[%emt 0:00:08]} 38. Kxe4 {[%emt 0:00:02]} Rxa2 {[%emt 0:00:09]} 39. Rd5 {[%emt 0:00:11]} Ra6 {[%emt 0:03:53]} 40. Kf5 {[%emt 0:00:00]} Rb6 {[%emt 0:00:00]} 41. Rd3 {[%emt 0:01:13]} Kg7 {[%emt 0:03:38]} 42. Ke6 {[%emt 0:00:24]} a5 $11 {[%emt 0:00:15]} 43. Kd7 {[%emt 0:05:47]} Rb4 {[%emt 0:10:24]} 44. Kxd6 {[%emt 0:01:15]} b6 {[%emt 0:00:04]} 45. Kc7 {[%emt 0:04:27]} Kf7 {[%emt 0:05:24]} 46. Rd7+ {[%emt 0:02:21]} Ke6 {[%emt 0:00:05]} 47. Rd6+ {[%emt 0:00:02]} Ke5 {[%emt 0:00:08]} 48. Rxb6 {[%emt 0:00:54]} a4 {[%emt 0:00:37]} 49. bxa4 {[%emt 0:04:05]} Rxa4 {[%emt 0:00:10]} 50. Rb1 {[%emt 0:04:53]} Rxc4 {[%emt 0:01:42]} 51. Kc6 {[%emt 0:00:14]} Rc2 {[%emt 0:02:35]} 52. Rd1 {[%emt 0:00:11]} Ke4 {[%emt 0:01:49]} 53. Kb5 {[%emt 0:00:10]} c4 {[%emt 0:04:05]} 54. Kb4 {[%emt 0:00:37]} c3 {[%emt 0:01:29]} 55. Kb3 {[%emt 0:00:29]} Rd2 {[%emt 0:00:07]} 56. Rxd2 {[%emt 0:00:14]} cxd2 {[%emt 0:00:16]} 57. Kc2 {[%emt 0:00:01]} Kd4 {[%emt 0:01:02]} 1/2-1/2

[Event "IND-ch Women 2019"]
[Site "Karaikkudi"]
[Date "2019.07.20"]
[Round "2.7"]
[White "Nandhini, Saripalli"]
[Black "Pratyusha, Bodda"]
[Result "1-0"]
[ECO "C54"]
[WhiteElo "1933"]
[BlackElo "2265"]
[Annotator "NA"]
[PlyCount "106"]
[EventDate "2019.07.19"]
[EventType "swiss"]
[EventCountry "IND"]
[SourceTitle "playchess.com"]
[Source "ChessBase"]
[SourceQuality "1"]
[TimeControl "40/5400+30:1800+30"]

{[%evp 8,88,14,5,32767,32767,0,32767,32767,-11,0,-6,32767,-13,0,0,13,32767,0,3,8,10,18,32767,40,43,63,51,62,67,51,41,63,47,102,85,91,99,112,82,85,119,135,-451,405,410,32767,32767,32767,32767,132,135,201,185,191,187,279,32767,32767,32767,32767,350,32767,455,32767,32767,32767,32767,32767,32767,32767,32767,32767,430,32767,502,653,909,1117,1422,1010,1522,1234]} 1. e4 {[%emt 0:00:00]} e5 {[%emt 0:00:00]} 2. Nf3 {[%emt 0:00:00]} Nc6 {[%emt 0:00:00]} 3. Bc4 {[%emt 0:00:00]} Bc5 {[%emt 0:00:03]} 4. c3 {[%emt 0:00:02]} Nf6 {[%emt 0:00:20]} 5. d4 {[%emt 0:00:48]} exd4 {[%emt 0:00:10]} 6. e5 {[%emt 0:00:10]} d5 {[%emt 0:00:29]} 7. Bb5 {[%emt 0:00:07]} Ne4 {[%emt 0:00:46]} 8. cxd4 {[%emt 0:00:07]} Bb6 {[%emt 0:00:52]} 9. Nc3 {[%emt 0:00:56]} O-O {[%emt 0:01:20]} 10. Be3 {[%emt 0:01:02] C54: Giuoco Piano: 4 c3 Nf6, main lines with 5 d4 and 5 d3} Bg4 {[%emt 0:02:08]} (10... Ba5 11. Qb3 Bxc3+ 12. bxc3 Na5 13. Qb4 b6 14. O-O Bf5 15. Rfc1 Rc8 16. Ba6 Rb8 17. Bd3 Re8 {½-½ (32) Karjakin,S (2753)-Topalov,V (2740) Shamkir 2019}) 11. h3 {[%emt 0:00:15]} Bh5 {[%emt 0:00:12]} 12. Qc2 {[%emt 0:01:02]} Bg6 {[%emt 0:06:37]} 13. Qb3 {[%emt 0:00:33]} Ne7 {[%emt 0:00:22]} 14. Nh4 {[%emt 0:01:07]} c6 {[%emt 0:05:07]} 15. Nxg6 {[%emt 0:00:57]} hxg6 {[%emt 0:01:05]} 16. Bd3 {[%emt 0:00:15]} Nf5 {[%emt 0:09:14]} 17. Bxe4 {[%emt 0:00:29]} dxe4 {[%emt 0:00:17]} 18. O-O-O $1 $146 {[%emt 0:01:09]} Nxd4 {[%emt 0:05:01]} 19. Qc4 {[%emt 0:02:34]} c5 {[%emt 0:02:23]} 20. Nxe4 {[%emt 0:00:58]} Qe7 {[%emt 0:00:48]} 21. f4 {[%emt 0:01:02]} Rfd8 {[%emt 0:07:20]} 22. Kb1 {[%emt 0:04:05]} Qe6 {[%emt 0:05:23]} 23. Qxe6 {[%emt 0:02:35]} Nxe6 {[%emt 0:00:03]} 24. h4 {[%emt 0:16:59]} c4 {[%emt 0:05:23]} 25. Bxb6 $16 {[%emt 0:02:11] and life is bright.} (25. Bd4 $2 {[%emt 1:05:18][%mdl 8192]}) 25... axb6 {[%emt 0:00:03]} 26. g3 {[%emt 0:02:02]} Nd4 {[%emt 0:09:46]} 27. Rd2 {[%emt 0:17:29]} Nf3 {[%emt 0:05:33]} 28. Rd6 {[%emt 0:05:03]} Rxd6 {[%emt 0:01:52]} 29. Nxd6 {[%emt 0:00:39]} b5 {[%emt 0:00:28]} 30. Rd1 {[%emt 0:05:55]} ({Resist} 30. Nxb7 $6 Nd2+ 31. Kc2 Ne4 $14) 30... Rd8 {[%emt 0:00:40]} 31. Kc2 {[%emt 0:06:55]} Nh2 {[%emt 0:03:21]} (31... b4 $142 32. Nxc4 Nd4+ 33. Kb1 f6 34. exf6 gxf6) 32. Nxb5 {[%emt 0:10:38]} Rxd1 {[%emt 0:01:21]} 33. Kxd1 {[%emt 0:00:01]} Nf1 {[%emt 0:00:06]} 34. Nd6 {[%emt 0:04:03]} Nxg3 {[%emt 0:00:24]} 35. Nxb7 {[%emt 0:00:23]} Nh5 {[%emt 0:00:04]} 36. a4 {[%emt 0:01:06]} Nxf4 {[%emt 0:00:04]} 37. Nc5 {[%emt 0:04:56]} Nd5 {[%emt 0:01:22]} 38. a5 {[%emt 0:00:32]} f6 {[%emt 0:00:05]} 39. e6 {[%emt 0:04:44]} Kf8 {[%emt 0:01:51]} 40. a6 {[%emt 0:00:00]} Ke7 {[%emt 0:00:00]} 41. a7 {[%emt 0:04:42]} Nb6 {[%emt 0:03:23]} 42. Kd2 {[%emt 0:01:35]} g5 {[%emt 0:00:34]} 43. hxg5 {[%emt 0:00:54]} fxg5 {[%emt 0:00:04]} 44. Ke3 {[%emt 0:03:11]} g6 $18 {[%emt 0:02:45]} 45. Ke4 {[%emt 0:12:24]} g4 {[%emt 0:02:47]} 46. Kf4 {[%emt 0:01:10]} Na8 {[%emt 0:00:03]} 47. Kxg4 {[%emt 0:00:39]} Kf6 {[%emt 0:00:11]} 48. Kf4 {[%emt 0:01:44]} Nc7 {[%emt 0:02:22]} 49. Ke4 {[%emt 0:04:42]} g5 {[%emt 0:03:55]} 50. Na6 {[%emt 0:02:21]} Na8 {[%emt 0:05:06]} 51. Kd5 {[%emt 0:00:02]} Ke7 {[%emt 0:00:10]} 52. Nc5 {[%emt 0:01:58]} g4 {[%emt 0:03:07]} 53. Ke4 {[%emt 0:00:14]} Nc7 {[%emt 0:02:56]} 1-0